[Event "Schack-SM 2024: Junior-SM"]
[Site "Fortnox Arena, Hejaregatan 5, Vaxjo, Sweden"]
[Date "2024.06.30"]
[Round "2.5"]
[White "Falkevall, Axel"]
[Black "Rasti, Arvin"]
[Result "1-0"]
[TimeControl "90 minutes for 40 moves + 30 minutes for the rest of the game + 30 seconds per move from move one."]
[WhiteTitle "FM"]
[BlackTitle "FM"]
[WhiteElo "2318"]
[BlackElo "2210"]

1. d4 {[%clk 01:30:55]} {[%emt 00:00:03]} Nf6 {[%clk 01:24:22]} {[%emt
00:06:40]} 2. c4 {[%clk 01:30:01]} {[%emt 00:01:24]} g6 {[%clk 01:24:31]}
{[%emt 00:00:21]} 3. Nc3 {[%clk 01:30:24]} {[%emt 00:00:07]} Bg7 {[%clk
01:24:58]} {[%emt 00:00:02]} 4. e4 {[%clk 01:30:47]} {[%emt 00:00:07]} d6
{[%clk 01:25:28]} 5. h3 {[%clk 01:30:47]} {[%emt 00:00:30]} O-O {[%clk
01:25:51]} {[%emt 00:00:07]} 6. Be2 {[%clk 01:31:07]} {[%emt 00:00:10]} c5
{[%clk 01:25:49]} {[%emt 00:00:33]} 7. d5 {[%clk 01:31:32]} {[%emt 00:00:05]}
e6 {[%clk 01:26:17]} {[%emt 00:00:03]} 8. Nf3 {[%clk 01:31:31]} {[%emt
00:00:30]} exd5 {[%clk 01:26:33]} {[%emt 00:00:14]} 9. exd5 {[%clk 01:31:50]}
{[%emt 00:00:11]} Re8 {[%clk 01:25:31]} {[%emt 00:01:31]} 10. O-O {[%clk
01:31:06]} {[%emt 00:01:15]} Bf5 {[%clk 01:23:39]} {[%emt 00:02:22]} 11. Re1
{[%clk 01:29:16]} {[%emt 00:02:18]} Ne4 {[%clk 01:19:32]} {[%emt 00:04:37]} 12.
Nxe4 {[%clk 01:29:13]} {[%emt 00:00:36]} Rxe4 {[%clk 01:19:53]} {[%emt
00:00:07]} 13. Bg5 {[%clk 01:25:21]} {[%emt 00:04:22]} Qf8 {[%clk 01:19:56]}
{[%emt 00:00:27]} 14. Qb3 {[%clk 01:21:07]} {[%emt 00:04:44]} h6 {[%clk
01:13:44]} {[%emt 00:06:42]} 15. Be3 {[%clk 01:18:24]} {[%emt 00:03:13]} Re7
{[%clk 01:13:00]} {[%emt 00:01:14]} 16. Bf4 {[%clk 01:14:23]} {[%emt 00:04:30]}
Qd8 {[%clk 01:09:01]} {[%emt 00:04:30]} 17. Bf1 {[%clk 01:08:30]} {[%emt
00:06:23]} Na6 {[%clk 01:02:49]} {[%emt 00:06:42]} 18. Rxe7 {[%clk 01:03:20]}
{[%emt 00:05:41]} Qxe7 {[%clk 01:03:17]} {[%emt 00:00:01]} 19. Re1 {[%clk
01:03:30]} {[%emt 00:00:20]} Qc7 {[%clk 01:01:17]} {[%emt 00:02:30]} 20. Qe3
{[%clk 00:48:25]} {[%emt 00:15:34]} Nb4 {[%clk 00:52:54]} {[%emt 00:08:54]} 21.
g4 {[%clk 00:38:48]} {[%emt 00:10:06]} Bd7 {[%clk 00:49:12]} {[%emt 00:04:13]}
22. Qd2 {[%clk 00:35:53]} {[%emt 00:03:25]} Nxa2 {[%clk 00:35:10]} {[%emt
00:14:33]} 23. Bxh6 {[%clk 00:35:13]} {[%emt 00:01:09]} Qd8 {[%clk 00:30:27]}
{[%emt 00:05:13]} 24. Bg5 {[%clk 00:31:30]} {[%emt 00:04:13]} Qc7 {[%clk
00:27:33]} {[%emt 00:03:24]} 25. Qf4 {[%clk 00:27:36]} {[%emt 00:04:23]} Re8
{[%clk 00:26:44]} {[%emt 00:01:20]} 26. Rxe8+ {[%clk 00:26:12]} {[%emt
00:01:54]} Bxe8 {[%clk 00:27:13]} {[%emt 00:00:02]} 27. Bf6 {[%clk 00:25:42]}
{[%emt 00:00:59]} Qd7 {[%clk 00:25:24]} {[%emt 00:02:19]} 28. Ng5 {[%clk
00:23:50]} {[%emt 00:02:21]} Bh6 {[%clk 00:23:53]} {[%emt 00:02:02]} 29. Qg3
{[%clk 00:20:55]} {[%emt 00:03:25]} Bxg5 {[%clk 00:19:36]} {[%emt 00:04:47]} 30.
Bxg5 {[%clk 00:21:15]} {[%emt 00:00:09]} f5 {[%clk 00:19:21]} {[%emt 00:00:46]}
31. Bf4 {[%clk 00:19:47]} {[%emt 00:01:58]} fxg4 {[%clk 00:15:43]} {[%emt
00:04:08]} 32. hxg4 {[%clk 00:19:23]} {[%emt 00:00:54]} b5 {[%clk 00:12:21]}
{[%emt 00:03:53]} 33. Bxd6 {[%clk 00:17:29]} {[%emt 00:02:23]} bxc4 {[%clk
00:12:38]} {[%emt 00:00:14]} 34. Bxc4 {[%clk 00:17:04]} {[%emt 00:00:53]} Nb4
{[%clk 00:12:36]} {[%emt 00:00:33]} 35. Be5 {[%clk 00:12:24]} {[%emt 00:05:10]}
Bf7 {[%clk 00:11:19]} {[%emt 00:01:48]} 36. Qh4 {[%clk 00:11:11]} {[%emt
00:01:42]} Bxd5 {[%clk 00:11:22]} {[%emt 00:00:27]} 37. Qh8+ {[%clk 00:09:35]}
{[%emt 00:02:06]} Kf7 {[%clk 00:11:51]} 38. Qf6+ {[%clk 00:08:28]} {[%emt
00:01:38]} Ke8 {[%clk 00:11:47]} {[%emt 00:00:33]} 39. Qxg6+ {[%clk 00:07:45]}
{[%emt 00:01:13]} Kd8 {[%clk 00:11:56]} {[%emt 00:00:20]} 40. Qf6+ {[%clk
00:07:36]} {[%emt 00:00:40]} Kc8 {[%clk 00:12:02]} {[%emt 00:00:24]} 41. Qf8+
{[%clk 00:05:52]} {[%emt 00:02:14]} 1-0

[ePGN "0.1;DGT LiveChess/2.2.6"]

[Event "Schack-SM 2024: Junior-SM"]
[Site "Fortnox Arena, Hejaregatan 5, Vaxjo, Sweden"]
[Date "2024.06.29"]
[Round "1.1"]
[White "Wernberg, Hugo"]
[Black "Falkevall, Axel"]
[Result "1/2-1/2"]
[TimeControl "90 minutes for 40 moves + 30 minutes for the rest of the game + 30 seconds per move from move one."]
[WhiteTitle "FM"]
[BlackTitle "FM"]
[WhiteElo "2208"]
[BlackElo "2318"]

1. d4 {[%clk 01:30:57]} {[%emt 00:00:02]} Nf6 {[%clk 01:30:51]} {[%emt
00:00:09]} 2. c4 {[%clk 01:31:22]} {[%emt 00:00:05]} g6 {[%clk 01:31:16]}
{[%emt 00:00:04]} 3. Nf3 {[%clk 01:31:45]} {[%emt 00:00:08]} Bg7 {[%clk
01:31:39]} {[%emt 00:00:06]} 4. g3 {[%clk 01:32:08]} {[%emt 00:00:08]} O-O
{[%clk 01:31:39]} {[%emt 00:00:29]} 5. Bg2 {[%clk 01:32:32]} {[%emt 00:00:07]}
d6 {[%clk 01:31:20]} {[%emt 00:00:48]} 6. Nc3 {[%clk 01:32:51]} {[%emt
00:00:11]} c5 {[%clk 01:31:08]} {[%emt 00:00:42]} 7. O-O {[%clk 01:33:12]}
{[%emt 00:00:10]} Nc6 {[%clk 01:31:34]} {[%emt 00:00:04]} 8. d5 {[%clk
01:33:31]} {[%emt 00:00:11]} Na5 {[%clk 01:31:55]} {[%emt 00:00:10]} 9. Nd2
{[%clk 01:33:52]} {[%emt 00:00:09]} e6 {[%clk 01:31:20]} {[%emt 00:01:04]} 10.
Rb1 {[%clk 01:32:13]} {[%emt 00:02:10]} exd5 {[%clk 01:31:33]} {[%emt
00:00:17]} 11. cxd5 {[%clk 01:32:25]} {[%emt 00:00:18]} Bd7 {[%clk 01:30:27]}
{[%emt 00:01:36]} 12. Nde4 {[%clk 01:32:31]} {[%emt 00:00:24]} Ne8 {[%clk
01:27:56]} {[%emt 00:03:01]} 13. Qd3 {[%clk 01:32:07]} {[%emt 00:00:54]} c4
{[%clk 01:20:08]} {[%emt 00:08:18]} 14. Qe3 {[%clk 01:32:02]} {[%emt 00:00:35]}
h6 {[%clk 01:14:45]} {[%emt 00:05:52]} 15. b4 {[%clk 01:09:39]} {[%emt
00:22:53]} cxb3 {[%clk 01:13:34]} {[%emt 00:01:42]} 16. axb3 {[%clk 01:09:42]}
{[%emt 00:00:27]} Rc8 {[%clk 01:08:42]} {[%emt 00:05:21]} 17. Nd1 {[%clk
01:03:33]} {[%emt 00:06:39]} f5 {[%clk 01:01:02]} {[%emt 00:08:10]} 18. Nd2
{[%clk 01:01:08]} {[%emt 00:02:55]} b6 {[%clk 00:55:05]} {[%emt 00:06:28]} 19.
Bb2 {[%clk 00:57:31]} {[%emt 00:04:07]} Nf6 {[%clk 00:51:24]} {[%emt 00:04:11]}
20. Qd3 {[%clk 00:52:58]} {[%emt 00:05:02]} Nb7 {[%clk 00:46:06]} {[%emt
00:05:49]} 21. b4 {[%clk 00:50:22]} {[%emt 00:03:05]} Qe8 {[%clk 00:33:49]}
{[%emt 00:12:47]} 22. Re1 {[%clk 00:46:42]} {[%emt 00:04:10]} Bb5 {[%clk
00:31:01]} {[%emt 00:03:18]} 23. Qa3 {[%clk 00:38:58]} {[%emt 00:08:13]} Rc2
{[%clk 00:24:34]} {[%emt 00:06:57]} 24. Nf3 {[%clk 00:34:05]} {[%emt 00:05:24]}
a5 {[%clk 00:16:44]} {[%emt 00:08:20]} 25. Nd4 {[%clk 00:28:16]} {[%emt
00:06:20]} Rc4 {[%clk 00:15:21]} {[%emt 00:01:53]} 26. bxa5 {[%clk 00:22:44]}
{[%emt 00:06:02]} bxa5 {[%clk 00:12:23]} {[%emt 00:03:29]} 27. Ba1 {[%clk
00:14:51]} {[%emt 00:08:23]} Ra4 {[%clk 00:10:26]} {[%emt 00:02:26]} 28. Qe3
{[%clk 00:12:20]} {[%emt 00:03:02]} Ng4 {[%clk 00:07:01]} {[%emt 00:03:55]} 29.
Qxe8 {[%clk 00:08:50]} {[%emt 00:04:00]} Bxe8 {[%clk 00:07:26]} {[%emt
00:00:05]} 30. e3 {[%clk 00:07:11]} {[%emt 00:02:10]} Nc5 {[%clk 00:06:30]}
{[%emt 00:01:26]} 31. Nc3 {[%clk 00:06:54]} {[%emt 00:00:46]} Rb4 {[%clk
00:04:31]} {[%emt 00:02:28]} 32. Ne6 {[%clk 00:05:52]} {[%emt 00:01:32]} Rf7
{[%clk 00:03:20]} {[%emt 00:01:41]} 33. Nxc5 {[%clk 00:04:43]} {[%emt
00:01:39]} dxc5 {[%clk 00:03:47]} {[%emt 00:00:03]} 34. d6 {[%clk 00:04:13]}
{[%emt 00:01:00]} Rd7 {[%clk 00:03:59]} {[%emt 00:00:18]} 35. Bc6 {[%clk
00:03:25]} {[%emt 00:01:18]} Rd8 {[%clk 00:04:10]} {[%emt 00:00:19]} 36. Bxe8
{[%clk 00:03:10]} {[%emt 00:00:46]} Rxe8 {[%clk 00:04:35]} {[%emt 00:00:05]} 37.
Nd5 {[%clk 00:03:06]} {[%emt 00:00:34]} Rxb1 {[%clk 00:02:56]} {[%emt
00:02:10]} 38. Rxb1 {[%clk 00:03:29]} {[%emt 00:00:06]} Bxa1 {[%clk 00:02:55]}
{[%emt 00:00:31]} 39. Rxa1 {[%clk 00:03:51]} {[%emt 00:00:08]} Rd8 {[%clk
00:03:15]} {[%emt 00:00:10]} 40. Rxa5 {[%clk 00:03:07]} {[%emt 00:01:13]} Rxd6
{[%clk 00:03:18]} {[%emt 00:00:27]} 41. Rxc5 {[%clk 00:02:27]} {[%emt
00:01:10]} Kf7 {[%clk 00:27:59]} {[%emt 00:05:49]} 42. Kg2 {[%clk 00:29:16]}
{[%emt 00:03:42]} Ne5 {[%clk 00:21:35]} {[%emt 00:06:54]} 43. h4 {[%clk
00:25:11]} {[%emt 00:04:35]} Nd3 {[%clk 00:20:05]} {[%emt 00:02:00]} 44. Ra5
{[%clk 00:24:25]} {[%emt 00:01:16]} Rc6 {[%clk 00:16:36]} {[%emt 00:03:59]} 45.
Ra3 {[%clk 00:22:09]} {[%emt 00:02:46]} Ne5 {[%clk 00:16:00]} {[%emt 00:01:06]}
46. Ra7+ {[%clk 00:20:50]} {[%emt 00:01:48]} Ke6 {[%clk 00:14:45]} {[%emt
00:01:46]} 47. Nf4+ {[%clk 00:17:32]} {[%emt 00:03:48]} Kf6 {[%clk 00:14:56]}
{[%emt 00:00:18]} 48. h5 {[%clk 00:16:44]} {[%emt 00:01:19]} gxh5 {[%clk
00:09:13]} {[%emt 00:06:13]} 49. Nxh5+ {[%clk 00:16:23]} {[%emt 00:00:51]} Kg6
{[%clk 00:09:35]} {[%emt 00:00:07]} 50. Nf4+ {[%clk 00:16:31]} {[%emt
00:00:23]} Kf6 {[%clk 00:09:16]} {[%emt 00:00:48]} 51. Nd5+ {[%clk 00:14:51]}
{[%emt 00:02:10]} Ke6 {[%clk 00:08:58]} {[%emt 00:00:48]} 52. Nc7+ {[%clk
00:14:22]} {[%emt 00:00:58]} Kf7 {[%clk 00:08:20]} {[%emt 00:01:08]} 53. Nb5+
{[%clk 00:14:10]} {[%emt 00:00:42]} Kg6 {[%clk 00:06:28]} {[%emt 00:02:22]} 54.
Nd4 {[%clk 00:14:00]} {[%emt 00:00:41]} Rb6 {[%clk 00:05:47]} {[%emt 00:01:11]}
55. Ra5 {[%clk 00:13:14]} {[%emt 00:01:16]} Nc6 {[%clk 00:05:55]} {[%emt
00:00:22]} 56. Ra3 {[%clk 00:08:11]} {[%emt 00:05:33]} Ne5 {[%clk 00:04:50]}
{[%emt 00:01:35]} 57. Rc3 {[%clk 00:07:58]} {[%emt 00:00:43]} Rb2 {[%emt
00:02:44]} 58. Ne6 {[%clk 00:06:22]} {[%emt 00:00:17]} Ng4 {[%clk 00:04:05]}
{[%emt 00:00:50]} 59. Nf4+ {[%clk 00:06:42]} {[%emt 00:00:10]} Kf6 {[%clk
00:03:59]} {[%emt 00:00:37]} 60. Nh3 {[%clk 00:05:57]} {[%emt 00:01:15]} Ra2
{[%clk 00:04:08]} {[%emt 00:00:21]} 61. Rc6+ {[%clk 00:06:00]} {[%emt
00:00:28]} Ke5 {[%clk 00:04:06]} {[%emt 00:00:33]} 62. Rc3 {[%clk 00:04:58]}
{[%emt 00:01:31]} Kf6 {[%clk 00:03:13]} {[%emt 00:01:23]} 63. Kf1 {[%clk
00:04:40]} {[%emt 00:00:48]} Ra1+ {[%clk 00:03:24]} {[%emt 00:00:20]} 64. Kg2
{[%clk 00:03:36]} {[%emt 00:01:33]} Ra2 {[%clk 00:03:50]} {[%emt 00:00:04]} 65.
Rd3 {[%clk 00:03:42]} {[%emt 00:00:24]} Ke5 {[%clk 00:03:48]} {[%emt 00:00:31]}
66. Kf1 {[%clk 00:03:08]} {[%emt 00:01:04]} Nh2+ {[%clk 00:01:44]} {[%emt
00:02:34]} 67. Kg2 {[%clk 00:03:18]} {[%emt 00:00:20]} Ng4 {[%clk 00:02:10]}
{[%emt 00:00:04]} 68. Rb3 {[%clk 00:03:33]} {[%emt 00:00:15]} Kf6 {[%clk
00:02:26]} {[%emt 00:00:14]} 69. Kf1 {[%clk 00:02:52]} {[%emt 00:01:11]} Ra1+
{[%clk 00:02:50]} {[%emt 00:00:05]} 70. Kg2 {[%clk 00:01:27]} {[%emt 00:01:55]}
Ra2 {[%clk 00:03:17]} {[%emt 00:00:04]} 71. Rb6+ {[%clk 00:01:47]} {[%emt
00:00:10]} Ke5 {[%clk 00:03:33]} {[%emt 00:00:13]} 72. Kf1 {[%clk 00:01:38]}
{[%emt 00:00:39]} Ra1+ {[%clk 00:03:59]} {[%emt 00:00:05]} 73. Ke2 {[%clk
00:01:24]} {[%emt 00:00:43]} Ra2+ {[%clk 00:04:26]} {[%emt 00:00:03]} 74. Kf3
{[%clk 00:01:14]} {[%emt 00:00:40]} Nh2+ {[%clk 00:04:50]} {[%emt 00:00:05]} 75.
Kg2 {[%clk 00:01:34]} {[%emt 00:00:09]} Ng4 {[%clk 00:05:19]} {[%emt 00:00:02]}
76. Rb5+ {[%clk 00:00:47]} {[%emt 00:01:17]} 1/2-1/2

[Event "Schack-SM 2024: Junior-SM"]
[Site "Fortnox Arena, Hejaregatan 5, Vaxjo, Sweden"]
[Date "2024.06.29"]
[Round "1.2"]
[White "Soderstrom, Adrian"]
[Black "Frank, Anton 2006"]
[Result "1/2-1/2"]
[TimeControl "90 minutes for 40 moves + 30 minutes for the rest of the game + 30 seconds per move from move one."]
[WhiteTitle "FM"]
[WhiteElo "2351"]
[BlackElo "2131"]

1. d4 {[%clk 01:30:44]} {[%emt 00:00:16]} d5 {[%clk 01:30:21]} {[%emt
00:00:40]} 2. c4 {[%clk 01:30:47]} {[%emt 00:00:27]} e6 {[%clk 01:30:40]}
{[%emt 00:00:10]} 3. Nf3 {[%clk 01:30:56]} {[%emt 00:00:21]} Nf6 {[%clk
01:31:03]} {[%emt 00:00:08]} 4. Nc3 {[%clk 01:31:13]} {[%emt 00:00:13]} Nbd7
{[%clk 01:31:26]} {[%emt 00:00:07]} 5. e3 {[%clk 01:31:12]} {[%emt 00:00:31]}
Bb4 {[%clk 01:29:17]} {[%emt 00:02:39]} 6. Be2 {[%clk 01:31:20]} {[%emt
00:00:22]} c5 {[%clk 01:27:29]} {[%emt 00:02:18]} 7. cxd5 {[%clk 01:26:05]}
{[%emt 00:05:45]} exd5 {[%clk 01:26:09]} {[%emt 00:01:49]} 8. O-O {[%clk
01:26:14]} {[%emt 00:00:21]} O-O {[%clk 01:23:27]} {[%emt 00:03:12]} 9. Bd2
{[%clk 01:25:36]} {[%emt 00:01:08]} Bxc3 {[%clk 01:05:40]} {[%emt 00:18:17]} 10.
Bxc3 {[%clk 01:24:40]} {[%emt 00:01:26]} Ne4 {[%clk 01:05:59]} {[%emt
00:00:11]} 11. Rc1 {[%clk 01:18:04]} {[%emt 00:07:07]} Nxc3 {[%clk 01:03:01]}
{[%emt 00:03:29]} 12. Rxc3 {[%clk 01:18:18]} {[%emt 00:00:15]} c4 {[%clk
01:03:16]} {[%emt 00:00:14]} 13. Nd2 {[%clk 00:54:52]} {[%emt 00:23:56]} Nf6
{[%clk 00:58:07]} {[%emt 00:05:39]} 14. Bf3 {[%clk 00:46:45]} {[%emt 00:08:37]}
Bf5 {[%clk 00:52:12]} {[%emt 00:06:26]} 15. Re1 {[%clk 00:40:43]} {[%emt
00:06:32]} Re8 {[%clk 00:48:20]} {[%emt 00:04:22]} 16. Nf1 {[%clk 00:36:47]}
{[%emt 00:04:25]} b5 {[%clk 00:43:17]} {[%emt 00:05:33]} 17. Ng3 {[%clk
00:36:29]} {[%emt 00:00:49]} Bg6 {[%clk 00:41:28]} {[%emt 00:02:19]} 18. Rc1
{[%clk 00:34:38]} {[%emt 00:02:20]} a5 {[%clk 00:34:54]} {[%emt 00:07:05]} 19.
Ne2 {[%clk 00:31:44]} {[%emt 00:03:23]} b4 {[%clk 00:26:02]} {[%emt 00:09:23]}
20. Qa4 {[%clk 00:27:27]} {[%emt 00:04:47]} Qb6 {[%clk 00:23:22]} {[%emt
00:03:10]} 21. Nf4 {[%clk 00:26:48]} {[%emt 00:01:11]} Be4 {[%clk 00:23:06]}
{[%emt 00:00:45]} 22. Bxe4 {[%clk 00:22:15]} {[%emt 00:05:02]} Rxe4 {[%clk
00:23:22]} {[%emt 00:00:14]} 23. Qc2 {[%clk 00:21:30]} {[%emt 00:01:14]} Rae8
{[%clk 00:18:40]} {[%emt 00:05:13]} 24. Ne2 {[%clk 00:18:31]} {[%emt 00:03:30]}
g6 {[%clk 00:17:18]} {[%emt 00:01:51]} 25. b3 {[%clk 00:08:46]} {[%emt
00:10:16]} Rc8 {[%clk 00:13:51]} {[%emt 00:03:56]} 26. Nf4 {[%clk 00:08:20]}
{[%emt 00:00:56]} Re7 {[%clk 00:11:12]} {[%emt 00:03:11]} 27. Nd3 {[%clk
00:06:02]} {[%emt 00:02:47]} Nd7 {[%clk 00:08:48]} {[%emt 00:02:53]} 28. Nf4
{[%clk 00:06:10]} {[%emt 00:00:21]} Nf6 {[%clk 00:09:08]} {[%emt 00:00:11]} 29.
Nd3 {[%clk 00:06:32]} {[%emt 00:00:08]} Nd7 {[%clk 00:09:29]} {[%emt 00:00:10]}
30. Nf4 {[%clk 00:06:54]} {[%emt 00:00:07]} 1/2-1/2